[Event "5th Sharjah Masters 2022"]
[Site "Sharjah"]
[Date "2022.05.27"]
[Round "7.3"]
[White "Martirosyan, Haik M."]
[Black "Gupta, Abhijeet"]
[Result "1/2-1/2"]
[ECO "D23"]
[WhiteElo "2652"]
[BlackElo "2606"]
[Annotator "TA"]
[PlyCount "109"]
[EventDate "2022.05.21"]
[EventType "swiss"]
[EventCountry "UAE"]
[SourceTitle "playchess.com"]
[Source "ChessBase"]
[SourceQuality "1"]
[TimeControl "5400+30"]

{[%evp 13,109,7,3,0,5,0,8,0,8,7,0,5,7,11,38,38,36,40,39,39,41,37,35,26,35,39,32,31,41,31,44,27,27,27,27,27,41,38,47,40,52,61,74,58,91,87,126,81,70,64,75,61,52,42,64,60,60,58,102,102,139,139,140,97,110,110,110,110,110,110,110,110,110,110,110,110,110,110,110,110,110,110,110,110,110,110,110,110,110,110,110,110,110,0,110,0,110,0]} 1. d4 {[%emt 0:00:03]} d5 {[%emt 0:00:10]} 2. c4 {[%emt 0:00:31]} c6 {[%emt 0:00:05]} 3. Nf3 {[%emt 0:00:12]} Nf6 {[%emt 0:00:05]} 4. Qb3 {[%emt 0:01:22]} dxc4 {[%emt 0:00:29]} 5. Qxc4 {[%emt 0:00:05]} Bf5 {[%emt 0:00:14]} 6. g3 {[%emt 0:00:45]} e6 {[%emt 0:00:05]} 7. Bg2 {[%emt 0:00:06]} Be7 {[%emt 0:00:04]} 8. O-O {[%emt 0:00:17] D23: Queen's Gambit Accepted: 3 Nf3 Nf6 sidelines.} O-O {[%emt 0:00:05]} 9. Nbd2 {[%emt 0:00:57]} Nbd7 {[%emt 0:10:48][%cal Bb8d7,Bd7b6,Bb6c4][%mdl 32]} 10. Qb3 {[%emt 0:00:52] The position is equal.} Qb6 {[%emt 0:07:50]} 11. Nc4 {[%emt 0:00:42]} Qa6 {[%emt 0:00:03]} 12. Bf4 {[%emt 0:00:20]} Nb6 {[%emt 0:00:58]} 13. Bd6 {[%emt 0:01:26]} Qxc4 {[%emt 0:03:18]} (13... Bxd6 {feels hotter.} 14. Nxd6 Rfd8 15. Nxf5 exf5 16. Ne5 Nbd5) 14. Qxc4 {[%emt 0:01:01]} Nxc4 {[%emt 0:00:04]} 15. Bxe7 {[%emt 0:00:08]} Rfe8 {[%emt 0:00:03]} 16. Bxf6 {[%emt 0:00:17]} gxf6 {[%emt 0:00:04]} 17. Rfc1 {[%emt 0:00:56] [#]} Nd6 $146 {[%emt 0:01:38]} ({Predecessor:} 17... Nb6 18. Nd2 e5 19. dxe5 fxe5 20. Ne4 Bxe4 21. Bxe4 Rad8 22. Kf1 Rd4 23. Bc2 Red8 {½-½ (70) Solovyov,V (2266)-Airapetian,G (2502) St Petersburg 2014}) 18. h3 {[%emt 0:03:01]} Be4 {[%emt 0:01:01]} 19. Nd2 {[%emt 0:02:06]} Bxg2 {[%emt 0:01:07]} 20. Kxg2 {[%emt 0:00:06]} Rad8 {[%emt 0:12:09]} 21. Nb3 {[%emt 0:04:48][%cal Bd2b3,Bb3d4,Bd4f3][%mdl 32]} e5 {[%emt 0:01:43]} 22. e3 {[%emt 0:01:54]} exd4 {[%emt 0:01:32]} 23. Nxd4 {[%emt 0:00:53]} Re5 {[%emt 0:00:28]} 24. Rc2 {[%emt 0:08:39]} Nf5 {[%emt 0:07:01]} 25. Nf3 {[%emt 0:02:04]} Ra5 {[%emt 0:02:14]} ({Less strong is} 25... Rxe3 26. Rc5 Rxf3 27. Kxf3 $16) 26. a4 {[%emt 0:06:38]} Ne7 {[%emt 0:00:45]} 27. b4 {[%emt 0:02:49]} Rad5 {[%emt 0:00:25]} 28. b5 {[%emt 0:02:05]} cxb5 {[%emt 0:09:20]} 29. axb5 {[%emt 0:06:27]} Rxb5 {[%emt 0:00:31]} 30. Rxa7 {[%emt 0:00:59]} Nc6 {[%emt 0:00:22] Against Nd4} 31. Ra4 {[%emt 0:00:53]} f5 {[%emt 0:02:57]} 32. Rac4 {[%emt 0:05:23]} Rdd5 {[%emt 0:01:18]} 33. Ng1 {[%emt 0:03:47]} Ne5 {[%emt 0:00:21]} 34. Rc7 {[%emt 0:01:46]} Rb1 {[%emt 0:06:22]} 35. Nf3 {[%emt 0:04:07]} (35. Ra2 {is interesting.} Rdd1 36. Nf3 Nd3 37. Rc4) 35... Nxf3 {[%emt 0:06:30]} 36. Kxf3 $14 {[%emt 0:00:39][%mdl 4096] Endgame KRR-KRR} Rbb5 {[%emt 0:00:06]} 37. Re7 {[%emt 0:06:51] aiming for Rc8+.} Re5 {[%emt 0:00:39]} 38. Rc8+ {[%emt 0:00:21]} Kg7 {[%emt 0:00:05]} 39. Rec7 {[%emt 0:00:29]} Re6 {[%emt 0:04:53]} 40. Rd7 {[%emt 0:01:24]} b6 {[%emt 0:02:07]} 41. Rcc7 {[%emt 0:01:26]} Rf6 {[%emt 0:00:04]} 42. Rb7 {[%emt 0:00:33]} Rc5 {[%emt 0:00:28]} 43. Rd4 {[%emt 0:02:17]} Rb5 {[%emt 0:00:26]} 44. h4 {[%emt 0:01:43] White is more active.} Rc6 {[%emt 0:00:55]} 45. Rdd7 {[%emt 0:01:42]} Rf6 {[%emt 0:00:04]} 46. Rdc7 {[%emt 0:00:42]} Rb2 {[%emt 0:00:44]} 47. Re7 {[%emt 0:00:26]} Rb5 {[%emt 0:00:10]} 48. Rbc7 {[%emt 0:01:52]} Kf8 {[%emt 0:01:00]} 49. Red7 {[%emt 0:00:28]} Kg7 {[%emt 0:00:08]} 50. Rd8 {[%emt 0:00:41]} Re6 {[%emt 0:00:56]} 51. Rcc8 {[%emt 0:00:30]} Rg6 {[%emt 0:01:05]} 52. Rg8+ {[%emt 0:07:12]} Kh6 {[%emt 0:01:09]} 53. Rgd8 {[%emt 0:03:53]} Kg7 $1 {[%emt 0:00:07]} 54. Rg8+ {[%emt 0:00:28]} Kh6 $1 {[%emt 0:00:04]} 55. Rgd8 {[%emt 0:00:06] Weighted Error Value: White=0.10 (very precise) /Black=0.05 (flawless)} (55. Rge8 $16) 1/2-1/2

[Event "5th Sharjah Masters 2022"]
[Site "Sharjah"]
[Date "2022.05.27"]
[Round "7.4"]
[White "Gukesh D"]
[Black "Yilmaz, Mustafa"]
[Result "1/2-1/2"]
[ECO "C45"]
[WhiteElo "2659"]
[BlackElo "2631"]
[Annotator "TA"]
[PlyCount "69"]
[EventDate "2022.05.21"]
[EventType "swiss"]
[EventCountry "UAE"]
[SourceTitle "playchess.com"]
[Source "ChessBase"]
[SourceQuality "1"]
[TimeControl "5400+30"]

{[%evp 15,69,0,0,-32,22,0,24,24,24,24,24,31,40,45,43,59,34,41,54,34,57,50,40,42,64,0,0,0,0,8,8,8,9,6,6,8,8,8,8,8,8,8,8,6,6,7,6,8,8,0,0,0,0,0,0,0]} 1. e4 {[%emt 0:00:38]} e5 {[%emt 0:00:08]} 2. Nf3 {[%emt 0:00:30]} Nc6 {[%emt 0:00:04]} 3. d4 {[%emt 0:05:33]} exd4 {[%emt 0:00:16]} 4. Nxd4 {[%emt 0:00:06]} Nf6 {[%emt 0:00:03]} 5. Nxc6 {[%emt 0:00:46]} bxc6 {[%emt 0:00:02]} 6. e5 {[%emt 0:00:07]} Qe7 {[%emt 0:00:12]} 7. Qe2 {[%emt 0:00:06]} Nd5 {[%emt 0:00:03]} 8. c4 {[%emt 0:00:49]} Ba6 {[%emt 0:00:51]} 9. h4 {[%emt 0:00:07] C45: Scotch Game.} Nb6 {[%emt 0:26:05]} (9... O-O-O $15) 10. Nd2 {[%emt 0:00:53] [#]} d5 $146 {[%emt 0:12:16]} ({Predecessor:} 10... Qe6 11. b3 d6 12. Bb2 dxe5 13. Qxe5 Qxe5+ 14. Bxe5 O-O-O 15. O-O-O f6 16. Bc3 Bc5 {1-0 (55) Salem,A (2051)-Al Zaabi,S (2033) Ajman 2019}) 11. exd6 $1 {[%emt 0:04:23] White has an edge.} cxd6 {[%emt 0:05:06]} 12. Rh3 {[%emt 0:04:38] [#] And now Re3 would win.} Qxe2+ {[%emt 0:01:04]} (12... O-O-O {seems wilder.} 13. Ra3 Bb7 14. Nb3 Re8) 13. Bxe2 {[%emt 0:00:07]} d5 {[%emt 0:09:00]} 14. Re3+ {[%emt 0:13:00]} Kd8 {[%emt 0:00:22]} 15. cxd5 {[%emt 0:01:24]} Bxe2 {[%emt 0:00:08]} 16. Rxe2 {[%emt 0:00:28]} Nxd5 {[%emt 0:01:52]} 17. Nc4 {[%emt 0:02:04]} f6 {[%emt 0:02:08]} 18. Be3 {[%emt 0:02:42]} Bb4+ {[%emt 0:04:05]} 19. Kf1 {[%emt 0:05:27]} Re8 {[%emt 0:04:00]} 20. a3 {[%emt 0:08:08]} (20. Rc1 $14) 20... Nxe3+ $11 {[%emt 0:03:11] The position is equal.} 21. Nxe3 {[%emt 0:06:29]} Bc5 {[%emt 0:03:36]} 22. Nc4 {[%emt 0:06:32]} Rxe2 {[%emt 0:00:06]} 23. Kxe2 {[%emt 0:00:02][%mdl 4096] Endgame KRB-KRN} Kc7 {[%emt 0:00:20]} 24. Rc1 {[%emt 0:01:06]} Re8+ {[%emt 0:00:51]} 25. Kf3 {[%emt 0:00:07]} Rd8 {[%emt 0:06:54]} 26. Na5 {[%emt 0:10:25]} Rd5 {[%emt 0:01:40]} 27. b4 {[%emt 0:00:11]} Bb6 {[%emt 0:00:38]} 28. Nxc6 {[%emt 0:00:15] [#] Ne7+ is the strong threat.} Rd3+ {[%emt 0:01:39]} 29. Ke4 {[%emt 0:01:36]} Rxa3 {[%emt 0:00:49]} 30. Nxa7+ {[%emt 0:00:17]} Kd7 {[%emt 0:02:23]} 31. Rd1+ {[%emt 0:00:40]} Ke8 $1 {[%emt 0:00:05]} 32. Nc8 {[%emt 0:08:33]} Rb3 {[%emt 0:07:39]} 33. b5 {[%emt 0:03:10]} Rb4+ {[%emt 0:02:34]} 34. Kf3 {[%emt 0:00:56]} Rb3+ {[%emt 0:00:15]} 35. Ke4 {[%emt 0:03:35] Weighted Error Value: White=0.06 (flawless) /Black=0.06 (flawless)} 1/2-1/2

[Event "5th Sharjah Masters 2022"]
[Site "Sharjah"]
[Date "2022.05.27"]
[Round "7.5"]
[White "Ponkratov, Pavel"]
[Black "Erigaisi Arjun"]
[Result "1/2-1/2"]
[ECO "C50"]
[WhiteElo "2624"]
[BlackElo "2675"]
[Annotator "TA"]
[PlyCount "33"]
[EventDate "2022.05.21"]
[EventType "swiss"]
[EventCountry "UAE"]
[SourceTitle "playchess.com"]
[Source "ChessBase"]
[SourceQuality "1"]
[TimeControl "5400+30"]

{[%evp 10,33,10,7,7,12,11,12,19,6,4,6,8,18,22,5,26,10,31,0,0,0,0,0,0,-3]} 1. e4 {[%emt 0:00:03]} e5 {[%emt 0:00:07]} 2. Nf3 {[%emt 0:00:05]} Nc6 {[%emt 0:00:07]} 3. Bc4 {[%emt 0:00:03]} Nf6 {[%emt 0:00:06]} 4. d3 {[%emt 0:01:10]} Bc5 {[%emt 0:00:07]} 5. Nc3 {[%emt 0:00:08]} h6 {[%emt 0:04:04]} 6. h3 {[%emt 0:02:12]} a6 {[%emt 0:02:39] C50: Hungarian Defence and Giuoco Pianissimo.} 7. a4 {[%emt 0:01:00]} d6 {[%emt 0:00:37]} 8. Ne2 {[%emt 0:01:50]} O-O {[%emt 0:07:05]} 9. Ng3 {[%emt 0:04:18]} Re8 {[%emt 0:03:43]} 10. O-O {[%emt 0:02:01]} d5 {[%emt 0:10:32]} 11. exd5 {[%emt 0:01:05]} Nxd5 {[%emt 0:00:06]} 12. c3 {[%emt 0:01:51]} Be6 {[%emt 0:09:06] [#]} 13. Re1 $146 {[%emt 0:16:23]} ({Predecessor:} 13. Qc2 Nf6 14. Bxe6 Rxe6 15. b4 Bf8 16. Be3 Qd5 17. Rfd1 Ree8 18. Ne4 Qe6 19. b5 {½-½ (28) Eljanov,P (2655)-Dominguez Perez,L (2760) Netanya 2019}) 13... Ba7 {[%emt 0:01:45]} 14. a5 {[%emt 0:05:20]} Nf6 {[%emt 0:00:53] The position is equal.} 15. Qa4 {[%emt 0:02:17]} Bxc4 {[%emt 0:10:19]} 16. Qxc4 {[%emt 0:00:11]} Qd7 {[%emt 0:00:07]} 17. Ne4 {[%emt 0:05:05] An interesting draw.  Weighted Error Value: White=0.06 (flawless) /Black=0.02 (flawless)} 1/2-1/2

[Event "5th Sharjah Masters 2022"]
[Site "Sharjah"]
[Date "2022.05.27"]
[Round "7.6"]
[White "Sarana, Alexey"]
[Black "Tabatabaei, M. Amin"]
[Result "1/2-1/2"]
[ECO "E51"]
[WhiteElo "2675"]
[BlackElo "2650"]
[Annotator "TA"]
[PlyCount "109"]
[EventDate "2022.05.21"]
[EventType "swiss"]
[EventCountry "UAE"]
[SourceTitle "playchess.com"]
[Source "ChessBase"]
[SourceQuality "1"]
[TimeControl "5400+30"]

{[%evp 16,109,8,13,22,9,27,11,5,0,0,0,0,0,-7,-12,-14,-56,-41,-39,-45,-32,-18,-26,-12,-30,0,0,0,0,0,-8,-7,-14,-10,-58,-58,-56,-33,-68,-54,-54,-53,-53,-53,-50,-43,-54,-54,-52,-53,-53,-23,-29,-23,-30,-31,-25,-29,-30,-33,-39,-17,-22,-17,-44,-17,-19,-17,-27,-26,-27,-9,-37,-13,-23,0,0,0,0,0,0,0,-16,-16,-16,-16,-16,-16,-16,-16,-23,0,-23,0,-25]} 1. d4 {[%emt 0:00:03]} Nf6 {[%emt 0:00:08]} 2. c4 {[%emt 0:00:04]} e6 {[%emt 0:00:05]} 3. Nc3 {[%emt 0:00:05]} Bb4 {[%emt 0:00:05]} 4. e3 {[%emt 0:03:14]} O-O {[%emt 0:00:08]} 5. Bd3 {[%emt 0:00:11]} d5 {[%emt 0:00:07]} 6. a3 {[%emt 0:02:24]} dxc4 {[%emt 0:00:08]} 7. Bxc4 {[%emt 0:00:09]} Be7 {[%emt 0:00:05]} 8. Nf3 {[%emt 0:00:32]} c5 {[%emt 0:00:06]} 9. O-O {[%emt 0:04:07]} a6 {[%emt 0:00:05] E51: Nimzo-Indian: Rubinstein: 4...0-0 5 Nf3 d5.} 10. dxc5 {[%emt 0:00:43]} Bxc5 {[%emt 0:00:09]} 11. Bd3 {[%emt 0:02:50]} Nbd7 {[%emt 0:00:47]} 12. Qe2 {[%emt 0:02:51]} b5 {[%emt 0:06:36]} 13. e4 {[%emt 0:05:23] [#] And now e5 would win.} Bb7 {[%emt 0:00:22] [#]} 14. Bf4 $146 {[%emt 0:03:15]} ({Predecessor:} 14. e5 Bxf3 15. gxf3 Nh5 16. Qe4 g6 17. Be2 Ng7 18. Bh6 Re8 19. Rad1 Nf5 20. Bc1 {1-0 (45) Gareyev,T (2565)-Yoo,C (2535) San Salvador 2022}) 14... Nh5 {[%emt 0:05:09][%cal Bf6h5,Bh5f4,Bf4d3][%mdl 32]} 15. Bg5 {[%emt 0:03:26]} Qc7 {[%emt 0:18:18]} 16. Rac1 {[%emt 0:02:59]} Nf4 {[%emt 0:05:06]} 17. Qd2 {[%emt 0:00:28]} Nxd3 {[%emt 0:00:25]} 18. Qxd3 {[%emt 0:00:04]} Ne5 {[%emt 0:01:03]} (18... h6 {feels hotter.} 19. Bh4 Ne5 20. Nxe5 Qxe5 21. Qd7 Ra7) 19. Qe2 {[%emt 0:03:01]} Nxf3+ {[%emt 0:03:17]} 20. Qxf3 {[%emt 0:00:03]} Qb6 {[%emt 0:01:13]} 21. b4 {[%emt 0:05:13]} Bd4 {[%emt 0:02:14]} 22. Ne2 {[%emt 0:00:08]} Rac8 {[%emt 0:06:52]} 23. Be7 {[%emt 0:11:05]} Rfe8 {[%emt 0:01:13]} 24. Rxc8 {[%emt 0:00:20]} Rxc8 {[%emt 0:00:37]} 25. Nxd4 {[%emt 0:00:04]} (25. h3 $11 {should be considered.}) 25... Qxd4 $15 {[%emt 0:00:08]} 26. Rd1 {[%emt 0:00:03]} Qc4 {[%emt 0:06:43]} 27. Qg4 {[%emt 0:05:11]} Bxe4 {[%emt 0:10:56]} 28. Bf6 {[%emt 0:02:23][%csl Gf6][%cal Rg4g7] [#]} Bg6 {[%emt 0:00:08]} 29. Qxc4 {[%emt 0:00:05]} bxc4 {[%emt 0:00:05][%mdl 4096] Endgame KRB-KRB} 30. Bc3 {[%emt 0:00:07]} Bd3 {[%emt 0:01:15][%cal Oe6e5]} 31. f4 {[%emt 0:00:05]} f6 {[%emt 0:00:37]} 32. Rd2 {[%emt 0:00:38]} Kf7 {[%emt 0:00:37]} 33. Kf2 {[%emt 0:00:06]} h5 {[%emt 0:09:59]} 34. a4 {[%emt 0:00:45]} Rb8 {[%emt 0:00:30]} 35. Ke3 {[%emt 0:00:37]} Ke7 {[%emt 0:00:43]} 36. Rb2 {[%emt 0:01:30]} Kd6 {[%emt 0:00:08]} 37. b5 {[%emt 0:04:15]} axb5 {[%emt 0:00:02]} 38. axb5 {[%emt 0:00:05]} Kc7 {[%emt 0:01:37]} 39. b6+ {[%emt 0:01:19]} Kb7 {[%emt 0:01:57]} (39... Rxb6 $2 40. Ba5 $18) 40. Rb5 {[%emt 0:01:17]} Kc6 {[%emt 0:00:48][%csl LRb5,LRb6]} 41. Rxh5 {[%emt 0:01:23]} Rxb6 {[%emt 0:00:16]} 42. Ra5 $1 {[%emt 0:00:30]} Rb3 {[%emt 0:00:28]} 43. Kd2 {[%emt 0:00:08]} Bf5 {[%emt 0:10:41]} 44. h3 {[%emt 0:05:42]} Rb1 {[%emt 0:01:00]} 45. Ra7 {[%emt 0:03:14]} Rb7 {[%emt 0:06:54]} 46. Rxb7 {[%emt 0:01:04]} Kxb7 $11 {[%emt 0:00:02] KB-KB} 47. g4 {[%emt 0:00:07]} Bd3 {[%emt 0:00:05]} 48. h4 {[%emt 0:00:02]} Kc6 {[%emt 0:00:18]} 49. g5 {[%emt 0:00:05]} fxg5 {[%emt 0:00:17]} 50. hxg5 {[%emt 0:00:04]} g6 {[%emt 0:00:06]} 51. Ke3 {[%emt 0:00:03]} Kd5 {[%emt 0:00:03]} 52. Be5 {[%emt 0:00:05]} Kc5 {[%emt 0:00:03]} 53. Bc3 {[%emt 0:00:03]} Kd5 {[%emt 0:00:07]} 54. Be5 {[%emt 0:00:03]} Kc5 {[%emt 0:00:04]} 55. Bc3 {[%emt 0:00:03] Weighted Error Value: White=0.07 (flawless) /Black=0.08 (flawless)} 1/2-1/2

[Event "5th Sharjah Masters 2022"]
[Site "Sharjah"]
[Date "2022.05.27"]
[Round "7.7"]
[White "Petrosyan, Manuel"]
[Black "Idani, Pouya"]
[Result "1/2-1/2"]
[ECO "E51"]
[WhiteElo "2638"]
[BlackElo "2635"]
[Annotator "TA"]
[PlyCount "65"]
[EventDate "2022.05.21"]
[EventType "swiss"]
[EventCountry "UAE"]
[SourceTitle "playchess.com"]
[Source "ChessBase"]
[SourceQuality "1"]
[TimeControl "5400+30"]

{[%evp 14,65,18,0,32,4,28,29,37,26,22,29,19,32,32,31,40,25,18,19,26,18,41,13,15,29,21,0,0,0,0,0,0,0,0,0,0,0,13,22,4,0,0,0,0,0,0,0,0,0,0,0,0,0]} 1. d4 {[%emt 0:00:45]} Nf6 {[%emt 0:00:05]} 2. c4 {[%emt 0:00:05]} e6 {[%emt 0:00:04]} 3. Nc3 {[%emt 0:00:18]} Bb4 {[%emt 0:00:05]} 4. e3 {[%emt 0:00:21]} O-O {[%emt 0:00:22]} 5. Nf3 {[%emt 0:00:08]} d5 {[%emt 0:00:07]} 6. Bd2 {[%emt 0:00:23]} c5 {[%emt 0:00:20]} 7. a3 {[%emt 0:01:45]} Bxc3 {[%emt 0:00:41]} 8. Bxc3 {[%emt 0:00:05]} Ne4 {[%emt 0:00:04] E51: Nimzo-Indian: Rubinstein: 4...0-0 5 Nf3 d5.} 9. Rc1 {[%emt 0:01:57]} (9. Qc2 $5 {[%cal Rd4c5]}) 9... Nxc3 {[%emt 0:00:05]} 10. Rxc3 {[%emt 0:00:04]} cxd4 {[%emt 0:00:08] White has an edge.} 11. Qxd4 {[%emt 0:03:44]} Nc6 {[%emt 0:03:38]} 12. Qd2 {[%emt 0:00:09]} dxc4 {[%emt 0:01:02]} 13. Bxc4 {[%emt 0:01:09]} Qxd2+ {[%emt 0:06:32]} 14. Kxd2 {[%emt 0:02:03]} Rd8+ {[%emt 0:01:08]} 15. Ke2 {[%emt 0:00:15]} Bd7 {[%emt 0:02:13]} 16. Rhc1 {[%emt 0:04:23]} Kf8 {[%emt 0:03:40]} 17. b4 {[%emt 0:05:14] [#]} a6 $146 {[%emt 0:02:30]} ({Predecessor:} 17... Rac8 18. Bd3 Ne7 19. Ne5 Rxc3 20. Nxd7+ Rxd7 21. Rxc3 g6 22. f4 h5 23. Bb5 Rd5 {½-½ (70) Li,C (2699)-Sargsyan,S (2488) Chess.com INT 2019}) 18. e4 {[%emt 0:08:12]} Rac8 {[%emt 0:05:54]} 19. Ke3 {[%emt 0:03:56]} Na7 {[%emt 0:06:30]} 20. Nd4 {[%emt 0:11:02] The position is equal.} e5 {[%emt 0:06:35]} 21. Nb3 {[%emt 0:00:45]} Nb5 {[%emt 0:00:30]} 22. Bxb5 {[%emt 0:03:10]} Rxc3+ {[%emt 0:00:07]} 23. Rxc3 {[%emt 0:00:03]} Bxb5 $11 {[%emt 0:00:06][%mdl 4096] Endgame KRB-KRN} 24. f4 {[%emt 0:15:17]} exf4+ {[%emt 0:01:56]} 25. Kxf4 {[%emt 0:00:01]} b6 {[%emt 0:08:23]} 26. Ke3 {[%emt 0:00:11]} Bf1 {[%emt 0:09:04]} 27. g3 {[%emt 0:06:24]} Rd1 {[%emt 0:01:17]} 28. Nd4 {[%emt 0:00:35]} g6 {[%emt 0:00:59] Prevents Nf5.} 29. h4 {[%emt 0:01:26]} Kg7 {[%emt 0:04:56]} 30. Nf3 {[%emt 0:02:01]} Bb5 {[%emt 0:06:57]} 31. Nd4 {[%emt 0:04:27]} Bf1 {[%emt 0:00:30]} 32. Nf3 {[%emt 0:00:06]} Bb5 {[%emt 0:00:03]} 33. Nd4 {[%emt 0:26:36] Weighted Error Value: White=0.05 (flawless) /Black=0.04 (flawless)} 1/2-1/2

[Event "5th Sharjah Masters 2022"]
[Site "Sharjah"]
[Date "2022.05.27"]
[Round "7.9"]
[White "Puranik, Abhimanyu"]
[Black "Sargissian, Gabriel"]
[Result "1/2-1/2"]
[ECO "C88"]
[WhiteElo "2608"]
[BlackElo "2694"]
[Annotator "TA"]
[PlyCount "79"]
[EventDate "2022.05.21"]
[EventType "swiss"]
[EventCountry "UAE"]
[SourceTitle "playchess.com"]
[Source "ChessBase"]
[SourceQuality "1"]
[TimeControl "5400+30"]

{[%evp 19,79,18,24,25,30,27,30,21,19,17,19,13,20,0,0,0,0,0,0,7,19,21,14,6,13,-14,-20,-17,0,0,218,225,219,0,0,0,226,104,260,232,236,0,0,0,0,0,0,0,0,0,0,0,0,0,0,0,0,0,0,0,0,0]} 1. e4 {[%emt 0:00:52]} e5 {[%emt 0:00:08]} 2. Nf3 {[%emt 0:01:22]} Nc6 {[%emt 0:00:10]} 3. Bb5 {[%emt 0:00:08]} a6 {[%emt 0:00:05]} 4. Ba4 {[%emt 0:00:09]} Nf6 {[%emt 0:00:10]} 5. O-O {[%emt 0:00:07]} Be7 {[%emt 0:00:07]} 6. Re1 {[%emt 0:00:18]} b5 {[%emt 0:00:33]} 7. Bb3 {[%emt 0:00:05]} O-O {[%emt 0:00:09]} 8. a4 {[%emt 0:01:39]} Rb8 {[%emt 0:02:42]} 9. axb5 {[%emt 0:00:44]} axb5 {[%emt 0:00:50]} 10. d3 {[%emt 0:00:46]} d6 {[%emt 0:01:04]} 11. Nbd2 {[%emt 0:03:51] 11.h3 is becoming the main line. C88: Closed Ruy Lopez: Anti-Marshall Systems.} Nb4 {[%emt 0:12:06]} 12. Nf1 {[%emt 0:02:43]} c5 {[%emt 0:00:07] [#]} 13. Bd2 $146 {[%emt 0:19:13] White has an edge.} ({Predecessor:} 13. c3 Nc6 14. Ng3 Qc7 15. h3 b4 16. Be3 Bd7 17. d4 Na5 18. Ba4 Nc4 19. Qe2 Nxe3 20. Qxe3 {1-0 (45) Panocki,A (2338)-Chirila,I (2425) Herceg Novi 2008}) 13... Nc6 {[%emt 0:02:21]} 14. Ne3 {[%emt 0:01:37]} Be6 {[%emt 0:07:59]} 15. Nd5 {[%emt 0:02:14]} Bg4 {[%emt 0:11:35]} 16. Be3 {[%emt 0:18:40]} Nxd5 {[%emt 0:01:43]} 17. Bxd5 {[%emt 0:00:16]} Nb4 {[%emt 0:03:56]} 18. Bb3 {[%emt 0:00:06]} Qc8 {[%emt 0:04:42]} 19. h3 {[%emt 0:03:27]} c4 {[%emt 0:04:31] Threatens to win with ...Bxf3.} 20. hxg4 {[%emt 0:03:59] aiming for Bd2.} cxb3 {[%emt 0:00:12]} 21. cxb3 {[%emt 0:00:12]} Qxg4 {[%emt 0:05:14]} 22. d4 {[%emt 0:10:45]} Rbc8 {[%emt 0:16:21] White must now prevent ...Nc2.} (22... Qxe4 $2 23. Bd2 Qb7 24. Bxb4 $18) 23. Re2 {[%emt 0:11:04] Inhibits Nc2.} Bf6 {[%emt 0:00:20]} (23... Qxe4 $2 24. Bd2 Qb7 25. Bxb4 $18) 24. d5 {[%emt 0:10:19]} Qxe4 $2 {[%emt 0:00:47]} (24... Rfe8 $11 {and Black is okay.}) 25. Bd2 $1 $18 {[%emt 0:03:42]} ({Weaker is} 25. Bc5 Qf4 26. Bxd6 Rfd8 27. Bxe5 Bxe5 28. Rxe5 f6 $11) 25... Qg4 {[%emt 0:00:48]} 26. Nh2 {[%emt 0:00:24][%mdl 1024] White has strong compensation.} Qd4 {[%emt 0:00:51]} 27. Nf3 {[%emt 0:00:03]} Qg4 {[%emt 0:03:15]} 28. Bc3 {[%emt 0:00:51]} (28. Be1 $1 $18 {and the rest is easy.}) 28... Qf4 $2 {[%emt 0:10:47] [#]} (28... Rxc3 $16 29. bxc3 e4) 29. Nh2 $1 {[%emt 0:00:14]} Bh4 {[%emt 0:00:08] [#]} 30. g3 $2 {[%emt 0:00:52]} (30. Be1 $1 $18) 30... Bxg3 $1 $11 {[%emt 0:00:18] The position is equal.} 31. fxg3 {[%emt 0:00:02]} Qxg3+ {[%emt 0:00:15]} 32. Rg2 {[%emt 0:01:47]} Qe3+ {[%emt 0:00:18]} 33. Kh1 {[%emt 0:00:10]} Nd3 {[%emt 0:05:02] ...Nf2+ is the strong threat.} 34. Ng4 {[%emt 0:02:03] Inhibits Nf2+.} Qh3+ {[%emt 0:00:07]} 35. Rh2 {[%emt 0:00:04]} Qg3 {[%emt 0:00:05]} 36. Rg2 $1 {[%emt 0:00:57] Dancing on a razor blade.} Qh3+ {[%emt 0:00:20]} 37. Rh2 {[%emt 0:00:01]} Qg3 {[%emt 0:00:12]} 38. Rg2 $1 {[%emt 0:03:06]} Qh3+ {[%emt 0:00:13]} 39. Rh2 {[%emt 0:00:13]} Qg3 {[%emt 0:00:05]} 40. Rg2 $1 {[%emt 0:00:51] Weighted Error Value: White=0.24 (precise) /Black=0.22 (precise)} 1/2-1/2